[Event "Catalonia Championship Absolute 2024"]
[Site "Salou Tarragona"]
[Date "2024.05.17"]
[Round "4.1"]
[White "Alsina Leal, Daniel"]
[Black "Ayats Llobera, Gerard"]
[Result "0-1"]
[ECO "A28"]
[WhiteElo "2510"]
[BlackElo "2449"]
[Annotator "TA"]
[PlyCount "164"]
[EventDate "2024.05.06"]
[EventType "k.o."]
[EventCountry "ESP"]
[SourceTitle "playchess.com"]
[Source "ChessBase"]
[SourceQuality "1"]
[TimeControl "5400+30"]

{[%evp 49,164,-39,0,-47,-21,-50,-56,-62,-52,-55,-69,-64,-50,-126,-145,-141,-145,-142,-152,-146,-134,-147,-127,-247,-254,-280,-282,-273,-261,-282,-289,-410,-412,-412,-406,-614,-614,-2605,-2620,-2579,-2565,-2550,-2521,-2439,-1929,-1817,-1703,-1112,-1060,-29959,-29960,-29960,-29962,-29963,-29964,-29965,-29966,-29966,-29967,-29968,-29969,-29969,-29969,-29970,-29970,-29971,-29971,-29971,-29972,-29972,-29973,-29973,-29974,-29974,-29973,-29975,-29970,-29973,-29974,-29978,-29979,-29981,-29982,-29982,-29975,-29978,-29975,-29975,-29975,-29979,-29976,-29977,-29978,-29978,-29977,-29981,-29982,-29982,-29983,-29983,-29984,-29984,-29984,-29988,-29989,-29990,-29991,-29992,-29993,-29993,-29992,-29992,-29993,-29997,-29996,-29998,-29999]} 1. c4 {[%emt 0:02:06]} Nf6 {[%emt 0:06:03]} 2. Nc3 {[%emt 0:00:34]} e5 {[%emt 0:00:07]} 3. Nf3 {[%emt 0:00:54]} Nc6 {[%emt 0:00:37]} 4. e4 {[%emt 0:00:44]} Bb4 {[%emt 0:01:07]} 5. d3 {[%emt 0:00:34]} d6 {[%emt 0:01:03]} 6. a3 {[%emt 0:00:25]} Bxc3+ {[%emt 0:00:05]} 7. bxc3 {[%emt 0:00:05]} O-O {[%emt 0:01:19]} 8. g3 {[%emt 0:03:00]} h6 {[%emt 0:03:57]} 9. Bg2 {[%emt 0:02:23]} Be6 {[%emt 0:00:06]} 10. Rb1 {[%emt 0:04:43]} Rb8 {[%emt 0:01:57]} 11. h3 {[%emt 0:08:32]} Nd7 {[%emt 0:09:27]} 12. Nh4 {[%emt 0:11:33]} Ne7 {[%emt 0:07:59]} 13. g4 {[%emt 0:11:39]} Ng6 {[%emt 0:05:48]} 14. Nf5 {[%emt 0:04:26]} Nf4 {[%emt 0:11:47]} 15. Qf3 {[%emt 0:03:18]} c6 {[%emt 0:06:25]} 16. O-O {[%emt 0:03:42]} Nxg2 {[%emt 0:02:24]} 17. Kxg2 {[%emt 0:03:16]} b5 {[%emt 0:16:09]} 18. cxb5 {[%emt 0:00:55]} Rxb5 {[%emt 0:02:07]} 19. Rxb5 {[%emt 0:04:15]} cxb5 {[%emt 0:00:01]} 20. Kh2 {[%emt 0:02:46]} Bxf5 {[%emt 0:04:24]} 21. gxf5 {[%emt 0:03:22]} Qh4 {[%emt 0:03:05]} 22. Rg1 {[%emt 0:02:35]} Rc8 {[%emt 0:00:56]} 23. Rg4 {[%emt 0:06:57]} Qf6 {[%emt 0:00:02]} 24. Bd2 {[%emt 0:02:31]} Kf8 {[%emt 0:00:10]} 25. h4 {[%emt 0:04:33]} Nb6 {[%emt 0:02:15]} 26. Qh3 {[%emt 0:02:36]} (26. Kh3 $11) 26... d5 {[%emt 0:06:47]} 27. Qg3 {[%emt 0:03:07]} dxe4 {[%emt 0:00:51]} 28. Rxe4 {[%emt 0:00:14]} Nd7 {[%emt 0:00:59]} 29. f4 {[%emt 0:02:59]} Qxf5 {[%emt 0:01:27]} 30. fxe5 {[%emt 0:00:09]} Re8 {[%emt 0:01:14]} 31. Qf4 {[%emt 0:03:40]} (31. Be3 $1 $15) 31... Rxe5 $17 {[%emt 0:00:33]} 32. Qxf5 {[%emt 0:00:46]} Rxf5 {[%emt 0:00:01]} 33. Bf4 {[%emt 0:01:44]} Rd5 {[%emt 0:00:22]} 34. c4 {[%emt 0:00:23]} bxc4 {[%emt 0:01:35]} ({Don't play} 34... Rxd3 $6 35. cxb5 Nb6 (35... Rxa3 $2 {too greedy.} 36. Bd6+ Kg8 37. Bxa3 $18) 36. Bb8 $11) 35. dxc4 {[%emt 0:00:32]} Rd3 {[%emt 0:00:30]} 36. a4 {[%emt 0:01:58] [#]} (36. Re2 $17) 36... Nf6 $1 $19 {[%emt 0:01:39]} 37. Re2 {[%emt 0:00:31]} Rd4 {[%emt 0:00:13]} 38. Bg3 {[%emt 0:00:18]} Rxc4 {[%emt 0:00:21]} 39. a5 {[%emt 0:00:11]} Ra4 {[%emt 0:00:39]} 40. Be1 {[%emt 0:00:46]} (40. Rc2 {was called for.}) 40... Re4 $19 {[%emt 0:01:04]} 41. Rxe4 {[%emt 0:00:27]} Nxe4 {[%emt 0:00:01]} 42. a6 {[%emt 0:00:17]} (42. Bb4+ $142 Ke8 43. Kg2) 42... Ke8 $19 {[%emt 0:01:59]} 43. Bb4 {[%emt 0:00:27]} h5 {[%emt 0:00:39]} 44. Kg2 {[%emt 0:00:14]} g6 {[%emt 0:00:23]} 45. Kf3 {[%emt 0:00:26] [#]} Nf6 $1 {[%emt 0:00:22]} 46. Bd6 {[%emt 0:01:24]} Kd7 {[%emt 0:00:31]} 47. Bc5 {[%emt 0:00:28]} Nd5 {[%emt 0:00:12]} 48. Ke4 {[%emt 0:00:21]} Ke6 {[%emt 0:01:01]} 49. Bxa7 {[%emt 0:00:21]} Nc7 {[%emt 0:00:17]} 50. Kf4 {[%emt 0:00:15]} f6 {[%emt 0:00:15]} 51. Be3 {[%emt 0:01:02]} Nxa6 {[%emt 0:00:05]} 52. Ke4 {[%emt 0:00:05]} Nc7 {[%emt 0:00:05]} 53. Bd2 {[%emt 0:00:20]} Ne8 {[%emt 0:00:11]} 54. Be3 {[%emt 0:00:31]} Nd6+ {[%emt 0:00:24]} 55. Kf4 {[%emt 0:00:11]} Nf5 {[%emt 0:00:17]} 56. Bf2 {[%emt 0:00:13]} Kd5 {[%emt 0:00:13]} 57. Be1 {[%emt 0:00:37]} Nd4 {[%emt 0:01:10]} 58. Bb4 {[%emt 0:01:08]} Ne6+ {[%emt 0:00:11]} 59. Kf3 {[%emt 0:00:18]} Ke5 {[%emt 0:00:14]} 60. Bc3+ {[%emt 0:00:18]} Kf5 {[%emt 0:00:04]} 61. Bb4 {[%emt 0:00:55]} Nd4+ {[%emt 0:00:25]} 62. Kg3 {[%emt 0:00:12]} Ke4 {[%emt 0:00:13]} 63. Ba5 {[%emt 0:00:30]} Nf5+ {[%emt 0:00:16]} 64. Kh3 {[%emt 0:00:05]} g5 {[%emt 0:01:14]} 65. hxg5 {[%emt 0:00:39]} fxg5 {[%emt 0:00:02]} 66. Kg2 {[%emt 0:00:42]} Kf4 {[%emt 0:00:42]} 67. Bc7+ {[%emt 0:00:15]} Kg4 {[%emt 0:00:06]} 68. Bd8 {[%emt 0:00:45]} Ne3+ {[%emt 0:00:08]} 69. Kh2 {[%emt 0:00:56]} Nd5 {[%emt 0:00:04]} 70. Kg2 {[%emt 0:00:16]} Nf4+ {[%emt 0:00:02]} 71. Kh2 {[%emt 0:00:18]} Ne6 {[%emt 0:00:18]} 72. Be7 {[%emt 0:00:42]} Kf3 {[%emt 0:00:05]} 73. Bd6 {[%emt 0:01:04]} Nf4 {[%emt 0:00:14]} 74. Be7 {[%emt 0:00:33]} g4 {[%emt 0:00:19]} 75. Bh4 {[%emt 0:00:30]} Ng6 {[%emt 0:00:17]} 76. Be1 {[%emt 0:00:31]} h4 {[%emt 0:00:13]} 77. Ba5 {[%emt 0:00:24]} Nf4 {[%emt 0:00:16]} 78. Bb6 {[%emt 0:00:17]} g3+ {[%emt 0:00:29]} 79. Kh1 {[%emt 0:00:14]} Nh3 {[%emt 0:01:01]} 80. Ba7 {[%emt 0:01:03]} Nf2+ {[%emt 0:00:12]} 81. Bxf2 {[%emt 0:00:32]} gxf2 {[%emt 0:00:06]} 82. Kh2 {[%emt 0:00:18]} f1=R {[%emt 0:08:39]} 0-1

[Event "Catalonia Championship Absolute 2024"]
[Site "Salou Tarragona"]
[Date "2024.05.17"]
[Round "4.1"]
[White "Narciso Dublan, Marc"]
[Black "Guerra Mendez, Jose Angel"]
[Result "1/2-1/2"]
[ECO "C45"]
[WhiteElo "2424"]
[BlackElo "2489"]
[Annotator "TA"]
[PlyCount "119"]
[EventDate "2024.05.06"]
[EventType "k.o."]
[EventCountry "ESP"]
[SourceTitle "playchess.com"]
[Source "ChessBase"]
[SourceQuality "1"]
[TimeControl "5400+30"]

{[%evp 36,119,103,86,108,106,111,103,166,133,147,15,23,33,21,18,22,19,50,36,56,47,68,67,70,66,90,52,55,46,74,64,120,132,181,89,148,139,148,97,50,17,21,0,0,0,0,-8,-8,-8,-8,-8,0,0,0,0,0,0,8,8,8,0,8,8,8,8,8,0,8,8,8,8,8,0,8,8,8,0,0,0,0,0,0,0,8,0]} 1. e4 {[%emt 0:00:14]} e5 {[%emt 0:00:43]} 2. Nf3 {[%emt 0:00:23]} Nc6 {[%emt 0:00:05]} 3. d4 {[%emt 0:00:31]} exd4 {[%emt 0:00:07]} 4. Nxd4 {[%emt 0:00:11]} Nf6 {[%emt 0:00:06]} 5. Nxc6 {[%emt 0:00:31]} bxc6 {[%emt 0:00:05]} 6. Nd2 {[%emt 0:00:43]} d6 {[%emt 0:18:37] C45: Scotch Game.} 7. Bd3 {[%emt 0:00:47]} g6 {[%emt 0:00:05]} 8. b3 {[%emt 0:00:31]} Bg7 {[%emt 0:00:19]} 9. Bb2 {[%emt 0:00:08]} O-O {[%emt 0:01:01]} 10. O-O {[%emt 0:00:16]} Re8 {[%emt 0:07:04]} 11. Qc1 {[%emt 0:05:01]} Bb7 $146 {[%emt 0:07:27]} ({Predecessor:} 11... d5 12. Re1 a5 13. exd5 cxd5 14. Rxe8+ Qxe8 15. c4 Ba6 16. Bf1 c6 17. cxd5 cxd5 18. Bxa6 Rxa6 {1-0 Bogut,Z (2426)-Beliavsky,A (2613) Sarajevo Bosna op-A 42nd 2012 (5)}) 12. Bc3 {[%emt 0:03:40]} Nd7 {[%emt 0:03:22]} 13. Qb2 {[%emt 0:04:24]} Bxc3 {[%emt 0:00:06]} 14. Qxc3 {[%emt 0:00:05]} Qf6 {[%emt 0:00:06]} 15. Qa5 {[%emt 0:01:02]} Qd8 {[%emt 0:12:33]} 16. f4 {[%emt 0:05:41]} Nc5 {[%emt 0:00:07]} 17. Rae1 {[%emt 0:07:31]} Nxd3 {[%emt 0:00:46]} 18. cxd3 {[%emt 0:00:08]} c5 {[%emt 0:46:51]} 19. f5 {[%emt 0:03:55]} c6 {[%emt 0:00:00]} 20. Qc3 {[%emt 0:01:00]} Ba6 {[%emt 0:00:00]} 21. Re3 {[%emt 0:10:09]} Qe7 {[%emt 0:00:00]} (21... d5 $16 {was called for.} 22. fxg6 (22. Qxc5 Qb6 $14) 22... fxg6 23. Qxc5 Qb6) 22. Qa5 {[%emt 0:21:34]} Qb7 {[%emt 0:00:00] [#]} 23. Rh3 {[%emt 0:03:04]} (23. Nf3 $1 $16) 23... Qb6 $1 $11 {[%emt 0:00:00]} 24. Qc3 {[%emt 0:03:57]} Qb4 $1 {[%emt 0:00:00]} 25. Rc1 {[%emt 0:09:20]} Qxc3 {[%emt 0:00:00]} 26. Rxc3 {[%emt 0:00:02]} Rad8 {[%emt 0:00:00]} 27. Kf2 {[%emt 0:01:02]} Kg7 {[%emt 0:00:00]} 28. g4 {[%emt 0:03:18]} Rd7 {[%emt 0:00:23]} 29. Re3 {[%emt 0:01:50]} f6 {[%emt 0:00:59]} 30. h4 {[%emt 0:01:08]} Kf7 {[%emt 0:01:54]} 31. Nf3 {[%emt 0:02:16]} gxf5 {[%emt 0:00:36]} 32. gxf5 {[%emt 0:00:19]} Rb7 {[%emt 0:01:30]} 33. d4 {[%emt 0:02:32]} c4 {[%emt 0:00:17] [#]} (33... cxd4 $14 34. Nxd4 c5) 34. e5 $1 $16 {[%emt 0:00:21]} ({Don't play} 34. bxc4 $6 Rb2+ 35. Kg3 Rg8+ 36. Kh3 Bc8 $11) 34... d5 {[%emt 0:01:01]} (34... dxe5 $16 35. dxe5 (35. bxc4 Rb2+ 36. Ke1 exd4 $15) 35... cxb3 36. axb3 fxe5) 35. Re1 {[%emt 0:02:58]} (35. Kg3 $18 {has better winning chances.}) 35... Rbb8 {[%emt 0:00:52]} ({Black should play} 35... Rg8 36. exf6 Kxf6) 36. Rce3 {[%emt 0:03:58]} Bb5 {[%emt 0:00:15]} 37. Rg1 {[%emt 0:03:42]} (37. Kg3 $142) 37... Rg8 $16 {[%emt 0:01:09]} 38. Rxg8 {[%emt 0:00:39]} Rxg8 {[%emt 0:00:06]} 39. exf6 {[%emt 0:00:29]} Kxf6 {[%emt 0:00:10]} 40. a4 {[%emt 0:00:18]} Ba6 {[%emt 0:00:30]} 41. Re6+ {[%emt 0:00:08]} Kxf5 {[%emt 0:00:04]} 42. Rxc6 {[%emt 0:00:05]} Rg6 {[%emt 0:00:55]} 43. Rxg6 {[%emt 0:00:29]} hxg6 {[%emt 0:00:05]} 44. bxc4 {[%emt 0:00:41]} dxc4 {[%emt 0:00:46]} 45. Ke3 {[%emt 0:00:28]} c3 {[%emt 0:00:58]} 46. Ne5 {[%emt 0:00:35]} Bf1 {[%emt 0:00:39]} 47. Nc6 $1 {[%emt 0:01:07]} Kg4 {[%emt 0:00:45]} 48. Ne5+ {[%emt 0:00:45]} Kxh4 {[%emt 0:00:25]} 49. Nxg6+ {[%emt 0:00:05]} Kg5 {[%emt 0:00:07]} 50. Ne7 {[%emt 0:00:11]} Bc4 {[%emt 0:00:51]} 51. Nc6 {[%emt 0:00:48]} Kf5 {[%emt 0:00:41]} 52. Nxa7 {[%emt 0:00:28]} c2 {[%emt 0:00:07]} 53. Kd2 {[%emt 0:00:05]} Ke4 {[%emt 0:00:47]} 54. Nb5 {[%emt 0:00:19]} (54. Kxc2 {simplifies} Kxd4 55. Nc8 Bd3+ 56. Kb2) 54... Bb3 {[%emt 0:00:26]} 55. a5 {[%emt 0:00:17]} Kd5 $1 {[%emt 0:00:21]} 56. Nc3+ {[%emt 0:01:47]} Kxd4 {[%emt 0:00:37]} 57. Nb5+ {[%emt 0:00:32]} Kc5 {[%emt 0:00:13]} 58. Na3 {[%emt 0:00:02]} Kb4 {[%emt 0:00:40]} 59. Nxc2+ {[%emt 0:00:04]} Kxa5 {[%emt 0:00:14]} 60. Kd3 {[%emt 0:01:56]} 1/2-1/2

[Event "Catalonia Championship Absolute 2024"]
[Site "Salou Tarragona"]
[Date "2024.05.18"]
[Round "4.2"]
[White "Guerra Mendez, Jose Angel"]
[Black "Narciso Dublan, Marc"]
[Result "0-1"]
[ECO "B07"]
[WhiteElo "2489"]
[BlackElo "2424"]
[Annotator "TA"]
[PlyCount "104"]
[EventDate "2024.05.06"]
[EventType "k.o."]
[EventCountry "ESP"]
[SourceTitle "playchess.com"]
[Source "ChessBase"]
[SourceQuality "1"]
[TimeControl "5400+30"]

{[%evp 9,104,0,4,4,31,26,37,28,25,32,52,46,61,47,58,29,21,29,23,21,26,18,41,13,30,12,16,16,27,21,11,0,0,-31,0,-33,0,-21,0,-11,-12,-12,-12,-69,-74,-62,-8,-8,-8,-45,-59,-67,-39,-145,-160,-139,-46,-64,-44,-144,-112,-175,-140,-278,-286,-283,-257,-333,-321,-458,-435,-464,-468,-468,-435,-527,-553,-1282,-1132,-1383,-1296,-1562,-1514,-2450,-1545,-29983,-29984,-29984,-29985,-29985,-29986,-29986,-29987,-29986,-29987,-29993,-29994]} 1. e4 {[%emt 0:01:16]} d6 {[%emt 0:00:29]} 2. d4 {[%emt 0:00:05][%cal Bd2d4,Bd4d5][%mdl 32]} Nf6 {[%emt 0:00:17]} 3. f3 {[%emt 0:00:59]} e6 {[%emt 0:02:42][%cal Be7e6,Be6e5][%mdl 32]} 4. Be3 {[%emt 0:06:06]} Be7 {[%emt 0:00:40]} 5. Bd3 {[%emt 0:10:00]} O-O {[%emt 0:07:40]} 6. Ne2 {[%emt 0:01:35]} e5 {[%emt 0:01:30]} 7. d5 {[%emt 0:02:24]} a5 {[%emt 0:10:03]} 8. c4 {[%emt 0:01:43] White is slightly better.} Na6 {[%emt 0:00:19]} 9. Nbc3 {[%emt 0:00:09]} c6 {[%emt 0:13:32]} 10. Qd2 {[%emt 0:01:04]} Bd7 {[%emt 0:01:39]} 11. g4 {[%emt 0:08:18]} cxd5 {[%emt 0:06:21]} 12. cxd5 {[%emt 0:04:03]} Nc5 {[%emt 0:01:44]} 13. Bb5 {[%emt 0:07:15]} Qb6 {[%emt 0:06:07]} 14. a4 {[%emt 0:05:57] And now g5 would win.} Rfc8 {[%emt 0:01:36]} 15. Ra3 {[%emt 0:07:49]} Qd8 {[%emt 0:01:20]} 16. O-O {[%emt 0:07:23]} g6 {[%emt 0:15:49]} 17. Ng3 {[%emt 0:02:00]} Ne8 {[%emt 0:06:45]} 18. Bxd7 {[%emt 0:00:35]} Qxd7 {[%emt 0:00:56]} 19. Kh1 {[%emt 0:05:16]} Nc7 {[%emt 0:02:01]} 20. Qe2 {[%emt 0:04:28]} Rab8 {[%emt 0:04:40]} 21. Rd1 {[%emt 0:01:46]} b6 {[%emt 0:01:29]} 22. Kg2 {[%emt 0:01:22]} Bh4 {[%emt 0:00:39]} 23. Rd2 {[%emt 0:05:39]} Qe7 {[%emt 0:00:49]} 24. Nb5 {[%emt 0:05:57]} Nxb5 {[%emt 0:00:39]} 25. Qxb5 {[%emt 0:00:19]} Bg5 {[%emt 0:00:39]} 26. Rf2 {[%emt 0:00:49]} (26. Bxg5 $11 Qxg5 27. Rf2) 26... Bxe3 $15 {[%emt 0:01:08]} 27. Rxe3 {[%emt 0:00:04][%cal Ba3e3,Be3c3,Bc3c6][%mdl 32]} Qd7 {[%emt 0:00:44]} (27... Nd7 $15) 28. Rc3 $11 {[%emt 0:02:51][%cal Oc3c5] Hoping for Rxc5!} Rc7 {[%emt 0:05:03]} 29. Nf1 {[%emt 0:00:52]} Nxa4 {[%emt 0:00:42]} 30. Rc6 {[%emt 0:01:13]} Nc5 {[%emt 0:00:12][%cal Oc5e6] aiming for ...Ne6!} 31. Ne3 {[%emt 0:00:10] [#]} (31. Rc2 $15) 31... Ne6 $1 $17 {[%emt 0:05:58][%mdl 512]} 32. Qc4 {[%emt 0:00:05][%cal Oc6c7] [#] Repels Nd4} Nf4+ {[%emt 0:00:42]} (32... Rbc8 $1 $17 {[%cal Rc7c6]} 33. Rc2 Qe8) 33. Kg3 {[%emt 0:00:09]} Rcb7 {[%emt 0:00:35]} 34. Rc2 {[%emt 0:00:29] Black converts the advantage convincingly.} ({Better is} 34. Qc3 $15 Qe7 35. Ng2) 34... b5 $36 {[%emt 0:00:43][%mdl 2048] White is under strong pressure.} 35. Qf1 {[%emt 0:04:20]} (35. Qc3 $17) 35... a4 $19 {[%emt 0:00:59]} 36. g5 {[%emt 0:01:47]} (36. Qe1 $17 {was called for.}) 36... h5 {[%emt 0:00:44]} 37. gxh6 {[%emt 0:00:15]} Qe7 {[%emt 0:00:13]} 38. h4 {[%emt 0:00:59]} Kh7 {[%emt 0:00:20][%cal Ob5b4]} 39. Qh1 {[%emt 0:00:56]} (39. Ng2 $142) 39... b4 {[%emt 0:00:36]} (39... Kxh6 $2 40. Rh2 $19) 40. Nc4 {[%emt 0:00:29]} a3 {[%emt 0:00:19]} (40... Kxh6 41. Nxd6 Kg7 42. Nxb7 Qxb7 43. Rc7 $11) 41. b3 {[%emt 0:00:56]} Rd8 {[%emt 0:00:46]} ({Weaker is} 41... Kxh6 42. Nxd6 Kg7 43. Nxb7 Qxb7 44. Qa1 $15) 42. Ne3 {[%emt 0:00:47]} Ra7 {[%emt 0:00:38]} 43. Qh2 {[%emt 0:00:22]} Nh5+ {[%emt 0:00:25]} 44. Kh3 {[%emt 0:00:39]} Qf6 {[%emt 0:00:41]} 45. Qf2 {[%emt 0:00:22]} a2 {[%emt 0:00:10]} (45... Kxh6 $2 {loses.} 46. Ng4+ Kg7 47. Nxf6 $18) 46. Ng4 {[%emt 0:00:22]} Qf4 {[%emt 0:00:42]} 47. Nf6+ {[%emt 0:01:02]} Qxf6 {[%emt 0:00:28] Black mates.} 48. Qxa7 {[%emt 0:00:06]} Qxf3+ {[%emt 0:00:05]} 49. Kh2 {[%emt 0:00:03]} Qg3+ {[%emt 0:00:33]} 50. Kh1 {[%emt 0:00:01]} Qe1+ {[%emt 0:00:18]} 51. Kh2 {[%emt 0:00:21]} a1=Q {[%emt 0:00:34][%csl Gh5][%cal Re1g3]} 52. Qxf7+ {[%emt 0:00:11]} Kxh6 {[%emt 0:00:10] Weighted Error Value: White=0.78/Black=0.07 (flawless) .  Mistake:       	White=6     	Black=2      Inaccurate:     	White=6     	Black=3      OK:         	White=15    	Black=14     Best:        	---       	Black=3      Brilliant:      	---       	Black=1} 0-1

[Event "Catalonia Championship Absolute 2024"]
[Site "Salou Tarragona"]
[Date "2024.05.18"]
[Round "4.2"]
[White "Ayats Llobera, Gerard"]
[Black "Alsina Leal, Daniel"]
[Result "1/2-1/2"]
[ECO "B30"]
[WhiteElo "2449"]
[BlackElo "2510"]
[Annotator "RC"]
[PlyCount "177"]
[EventDate "2024.05.06"]
[EventType "k.o."]
[EventCountry "ESP"]
[SourceTitle "playchess.com"]
[Source "ChessBase"]
[SourceQuality "1"]
[TimeControl "5400+30"]

1. e4 {[%emt 0:00:02]} c5 {[%emt 0:00:21]} 2. Nf3 {[%emt 0:00:03]} Nc6 {[%emt 0:00:09]} 3. Bb5 {[%emt 0:00:04]} e6 {[%emt 0:00:09]} 4. O-O {[%emt 0:00:08]} Nge7 {[%emt 0:00:09]} 5. Re1 {[%emt 0:00:17]} Nd4 {[%emt 0:00:30]} 6. Bf1 {[%emt 0:09:09]} Nxf3+ {[%emt 0:02:18]} 7. Qxf3 {[%emt 0:00:03]} Nc6 {[%emt 0:00:20]} 8. c3 {[%emt 0:05:03]} Be7 {[%emt 0:12:03]} 9. Na3 {[%emt 0:11:34]} O-O {[%emt 0:02:16]} 10. Nc2 {[%emt 0:00:05]} b6 {[%emt 0:14:12]} 11. d4 {[%emt 0:01:02]} cxd4 {[%emt 0:00:25]} 12. cxd4 {[%emt 0:00:06]} Bb7 {[%emt 0:00:23]} 13. Bd3 {[%emt 0:01:18]} Nb4 {[%emt 0:22:07]} 14. Nxb4 {[%emt 0:00:34]} Bxb4 {[%emt 0:00:03]} 15. Re2 {[%emt 0:04:33]} f5 {[%emt 0:14:16]} 16. Qg3 {[%emt 0:18:46]} fxe4 {[%emt 0:00:45]} 17. Bxe4 {[%emt 0:01:15]} Bxe4 {[%emt 0:00:38]} 18. Rxe4 {[%emt 0:00:01]} Rf5 {[%emt 0:01:52]} 19. Bh6 {[%emt 0:04:55]} Bf8 {[%emt 0:00:35]} 20. Rc1 {[%emt 0:00:19]} Rc8 {[%emt 0:03:24]} 21. Ree1 {[%emt 0:02:08]} Rxc1 {[%emt 0:02:27]} 22. Rxc1 {[%emt 0:00:46]} Qa8 {[%emt 0:01:27]} 23. Be3 {[%emt 0:09:25]} Qd5 {[%emt 0:01:55]} 24. Qc7 {[%emt 0:01:51]} a5 {[%emt 0:06:42]} 25. a4 {[%emt 0:05:14]} Qd6 {[%emt 0:03:35]} 26. b3 {[%emt 0:07:58]} Rd5 {[%emt 0:00:44]} 27. h3 {[%emt 0:01:40]} Qb4 {[%emt 0:01:52]} 28. Qc4 {[%emt 0:00:53]} b5 {[%emt 0:00:41]} 29. Qxb4 {[%emt 0:02:42]} Bxb4 {[%emt 0:00:12]} 30. Kf1 {[%emt 0:00:22]} Kf7 {[%emt 0:02:16]} 31. Ke2 {[%emt 0:01:19]} Ke7 {[%emt 0:01:19]} 32. Kd3 {[%emt 0:00:18]} bxa4 {[%emt 0:00:31]} 33. bxa4 {[%emt 0:00:01]} Rf5 {[%emt 0:00:20]} 34. f3 {[%emt 0:01:47]} Rf8 {[%emt 0:00:44]} 35. Bd2 {[%emt 0:00:45]} Bxd2 {[%emt 0:01:21]} 36. Kxd2 {[%emt 0:00:01]} Rb8 {[%emt 0:00:18]} 37. Rc5 {[%emt 0:04:28]} Rb2+ {[%emt 0:00:24]} 38. Ke3 {[%emt 0:00:04]} Rxg2 {[%emt 0:00:07]} 39. Rxa5 {[%emt 0:00:57]} Rh2 {[%emt 0:01:12]} 40. Rh5 {[%emt 0:00:28]} h6 {[%emt 0:00:11]} 41. d5 {[%emt 0:05:59]} exd5 {[%emt 0:00:27]} 42. Rxd5 {[%emt 0:00:07]} Rxh3 {[%emt 0:00:10]} 43. Ra5 {[%emt 0:00:30]} g5 {[%emt 0:04:04]} 44. Ke4 {[%emt 0:00:53]} Rh4+ {[%emt 0:01:09]} 45. Ke3 {[%emt 0:00:01]} Ke6 {[%emt 0:00:45]} 46. Ra8 {[%emt 0:00:27]} Ke5 {[%emt 0:01:09]} 47. Re8+ {[%emt 0:00:49]} Kd5 {[%emt 0:00:09]} 48. Rh8 {[%emt 0:00:30]} Rxa4 {[%emt 0:00:37]} 49. Rxh6 {[%emt 0:00:05]} Ra3+ {[%emt 0:00:43]} 50. Ke2 {[%emt 0:00:34]} Ke5 {[%emt 0:00:21]} 51. Rg6 {[%emt 0:00:19]} Ra2+ {[%emt 0:00:28]} 52. Ke3 {[%emt 0:00:08]} Ra3+ {[%emt 0:00:25]} 53. Ke2 {[%emt 0:00:21]} d5 {[%emt 0:00:47]} 54. Rxg5+ {[%emt 0:00:20]} Kd4 {[%emt 0:00:05]} 55. f4 {[%emt 0:01:08]} Ra2+ {[%emt 0:00:34]} 56. Ke1 {[%emt 0:01:03]} Ra8 {[%emt 0:00:46]} 57. Kd2 {[%emt 0:00:20]} Rh8 {[%emt 0:00:30]} 58. Rg2 {[%emt 0:01:27]} Ra8 {[%emt 0:00:32]} 59. Rg5 {[%emt 0:00:51]} Rf8 {[%emt 0:00:19]} 60. f5 {[%emt 0:00:07]} Ke4 {[%emt 0:00:20]} 61. Rh5 {[%emt 0:00:30]} Rf6 {[%emt 0:00:19]} 62. Rg5 {[%emt 0:00:53]} Ra6 {[%emt 0:00:23]} 63. Rh5 {[%emt 0:00:33]} Rb6 {[%emt 0:00:30]} 64. Ke2 {[%emt 0:00:13]} Rb2+ {[%emt 0:00:50]} 65. Kd1 {[%emt 0:00:12]} Rf2 {[%emt 0:00:19]} 66. f6 {[%emt 0:00:35]} Rxf6 {[%emt 0:00:35]} 67. Ke2 {[%emt 0:00:16]} Kd4 {[%emt 0:00:18]} 68. Kd2 {[%emt 0:00:28]} Rf2+ {[%emt 0:00:11]} 69. Kd1 {[%emt 0:00:13]} Rf3 {[%emt 0:00:38]} 70. Kd2 {[%emt 0:00:10]} Kc4 {[%emt 0:00:41]} 71. Rh8 {[%emt 0:01:12]} Rg3 {[%emt 0:00:34]} 72. Rh7 {[%emt 0:00:13]} Rd3+ {[%emt 0:00:59]} 73. Kc2 {[%emt 0:00:11]} Rc3+ {[%emt 0:00:18]} 74. Kd2 {[%emt 0:00:10]} Rg3 {[%emt 0:00:28]} 75. Rh8 {[%emt 0:00:17]} Rg2+ {[%emt 0:00:20]} 76. Kd1 {[%emt 0:00:09]} Kc3 {[%emt 0:00:39]} 77. Rh3+ {[%emt 0:01:13]} Kc4 {[%emt 0:00:25]} 78. Rh4+ {[%emt 0:01:10]} d4 {[%emt 0:00:05]} 79. Rh3 {[%emt 0:00:14]} Rb2 {[%emt 0:00:49]} 80. Rg3 {[%emt 0:00:15]} Rb1+ {[%emt 0:00:27]} 81. Kc2 {[%emt 0:00:21]} Rh1 {[%emt 0:00:57]} 82. Kd2 {[%emt 0:00:07]} Rh2+ {[%emt 0:00:17]} 83. Kd1 {[%emt 0:00:18]} Rf2 {[%emt 0:00:18]} 84. Rh3 {[%emt 0:00:05]} Kd5 {[%emt 0:00:49]} 85. Rh5+ {[%emt 0:00:44]} Ke4 {[%emt 0:00:25]} 86. Rh4+ {[%emt 0:00:12]} Kd3 {[%emt 0:00:14]} 87. Rh3+ {[%emt 0:00:05]} Kc4 {[%emt 0:00:07]} 88. Rg3 {[%emt 0:00:02]} d3 {[%emt 0:00:25]} 89. Rg7 {[%emt 0:00:07]} 1/2-1/2